[Event "39th IND-chT 2019"]
[Site "Kolkata"]
[Date "2019.02.07"]
[Round "2"]
[White "Swapnil, S. Dhopade"]
[Black "Bhattacharyya Soham"]
[Result "1-0"]
[ECO "D02"]
[WhiteElo "2488"]
[BlackElo "1919"]
[Annotator "ChessBase"]
[PlyCount "91"]
[EventDate "2019.??.??"]
[EventCountry "IND"]
[SourceTitle "playchess.com"]
[Source "ChessBase"]
[SourceQuality "1"]
[TimeControl "5400+30"]

1. Nf3 Nf6 2. g3 g6 3. b3 Bg7 4. Bb2 O-O 5. Bg2 d6 6. d4 Nbd7 7. O-O e5 8. dxe5 Ng4 9. Qd2 Ngxe5 10. c4 Nxf3+ 11. Bxf3 Bxb2 12. Qxb2 Qf6 13. Nc3 Ne5 14. Bg2 Nc6 15. Rfd1 Be6 16. Rac1 Qe7 17. c5 Rad8 18. cxd6 Rxd6 19. Rxd6 Qxd6 20. Ne4 Qd4 21. Qxd4 Nxd4 22. Rxc7 Rc8 23. Rxc8+ Bxc8 24. e3 Ne2+ 25. Kf1 Nc1 26. Nc3 b5 27. Ke1 b4 28. Kd2 Nxb3+ 29. axb3 bxc3+ 30. Kxc3 Kf8 31. Kc4 Ke7 32. Bd5 f6 33. Kc5 Bd7 34. b4 h6 35. Bc6 Bc8 36. Be4 f5 37. Bd5 Bd7 38. Bc6 Bc8 39. Kd5 Be6+ 40. Ke5 Bc8 41. h4 h5 42. e4 Be6 43. Be8 Kxe8 44. Kxe6 fxe4 45. Kf6 Kd7 46. Kxg6 1-0

[Event "39th IND-chT 2019"]
[Site "Kolkata"]
[Date "2019.02.07"]
[Round "2"]
[White "Vignesh N R"]
[Black "Arnav Maheshwari"]
[Result "1-0"]
[ECO "D02"]
[WhiteElo "2473"]
[BlackElo "1825"]
[Annotator "ChessBase"]
[PlyCount "47"]
[EventDate "2019.??.??"]
[EventCountry "IND"]
[SourceTitle "playchess.com"]
[Source "ChessBase"]
[SourceQuality "1"]
[TimeControl "5400+30"]

1. d4 Nf6 2. c4 e6 3. Nf3 d5 4. Nc3 Bb4 5. Qa4+ Nc6 6. e3 O-O 7. Bd2 Bxc3 8. Bxc3 Ne4 9. Qc2 f5 10. b4 a5 11. b5 Nb8 12. Bd3 c5 13. cxd5 Qxd5 14. Bb2 Nd7 15. O-O Ndf6 16. Bc4 Qd6 17. dxc5 Nxc5 18. Qxf5 Bd7 19. Qe5 Qe7 20. Nd4 Rfc8 21. Nf5 Qd8 22. Rad1 Qb6 23. Nxg7 Nce4 24. Nh5 1-0

[Event "39th IND-chT 2019"]
[Site "Kolkata"]
[Date "2019.02.07"]
[Round "2"]
[White "Karthikeyan, P.."]
[Black "Arya Bhakta"]
[Result "1/2-1/2"]
[ECO "D02"]
[WhiteElo "2451"]
[BlackElo "2009"]
[Annotator "ChessBase"]
[PlyCount "130"]
[EventDate "2019.??.??"]
[EventCountry "IND"]
[SourceTitle "playchess.com"]
[Source "ChessBase"]
[SourceQuality "1"]
[TimeControl "5400+30"]

1. d4 Nf6 2. Bf4 g6 3. Nc3 d5 4. e3 Bg7 5. h4 c6 6. Be2 h6 7. Nf3 a5 8. O-O O-O 9. Ne5 Nfd7 10. Nf3 b5 11. Bd3 Nb6 12. Be5 Bg4 13. e4 Bxe5 14. dxe5 d4 15. Ne2 Bxf3 16. gxf3 e6 17. Qd2 Qxh4 18. Kg2 Qg5+ 19. Qxg5 hxg5 20. Kg3 N8d7 21. f4 gxf4+ 22. Kxf4 f6 23. exf6 Rxf6+ 24. Kg5 e5 25. f4 Re8 26. f5 gxf5 27. Rxf5 Rxf5+ 28. Kxf5 Kf7 29. Rh1 Ke7 30. Rh6 Rf8+ 31. Kg5 Rg8+ 32. Kf5 Nc8 33. Rh7+ Kd6 34. Rxd7+ Kxd7 35. Kxe5 Nd6 36. Nxd4 Nc4+ 37. Bxc4 bxc4 38. Nf5 c3 39. bxc3 Rg1 40. Kf6 Rg2 41. e5 Rxc2 42. e6+ Kc7 43. Kf7 Rf2 44. e7 Rxf5+ 45. Ke6 Rf2 46. e8=Q Re2+ 47. Kf7 Rxe8 48. Kxe8 Kd6 49. a4 c5 50. Kd8 c4 51. Kc8 Kc6 52. Kb8 Kb6 53. Kc8 Kc6 54. Kb8 Kd5 55. Kb7 Ke4 56. Kb6 Kd3 57. Kxa5 Kxc3 58. Kb6 Kb4 59. a5 c3 60. a6 c2 61. a7 c1=Q 62. a8=Q Qc5+ 63. Kb7 Qe7+ 64. Kc8 Qe8+ 65. Kb7 Qxa8+ {½-½} 1/2-1/2

[Event "39th IND-chT 2019"]
[Site "Kolkata"]
[Date "2019.02.07"]
[Round "2"]
[White "Barath Kalyan M"]
[Black "Shyam, Sundar M."]
[Result "0-1"]
[ECO "D02"]
[WhiteElo "2065"]
[BlackElo "2512"]
[Annotator "ChessBase"]
[PlyCount "82"]
[EventDate "2019.??.??"]
[EventCountry "IND"]
[SourceTitle "playchess.com"]
[Source "ChessBase"]
[SourceQuality "1"]
[TimeControl "5400+30"]

1. c4 e5 2. Nc3 Nc6 3. g3 f5 4. Bg2 Nf6 5. a3 d6 6. d3 Be7 7. Nf3 O-O 8. Qb3 Kh8 9. Ng5 Qe8 10. Nd5 Nd4 11. Qd1 Nxd5 12. cxd5 Bxg5 13. Bxg5 f4 14. Be4 h6 15. h4 Bg4 16. f3 Bd7 17. gxf4 exf4 18. Kf2 Qe5 19. Qc1 c6 20. Qc4 Rae8 21. Rae1 cxd5 22. Qxd5 Qxd5 23. Bxd5 Bc6 24. Ba2 Kh7 25. Rh2 hxg5 26. hxg5+ Kg6 27. Bb1 Bxf3 28. Rh3 Rxe2+ 29. Rxe2 Bxe2 30. Bc2 Nxc2 31. Kxe2 Nd4+ 32. Kf1 Kxg5 33. Rh7 Kg6 34. Rh2 Rc8 35. Rd2 Rc1+ 36. Kf2 Kf5 37. b4 g5 38. Ra2 g4 39. a4 g3+ 40. Kg2 Kg4 41. Ra3 f3# 0-1

[Event "39th IND-chT 2019"]
[Site "Kolkata"]
[Date "2019.02.09"]
[Round "6.2"]
[White "Sengupta, Deep"]
[Black "Visakh N R"]
[Result "1/2-1/2"]
[ECO "C50"]
[WhiteElo "2555"]
[BlackElo "2505"]
[Annotator "ChessBase"]
[PlyCount "88"]
[EventDate "2019.??.??"]
[EventCountry "IND"]
[SourceTitle "playchess.com"]
[Source "ChessBase"]
[SourceQuality "1"]
[TimeControl "5400+30"]

1. e4 {[%emt 0:00:00]} e5 {[%emt 0:00:00]} 2. Nf3 {[%emt 0:00:00]} Nc6 {[%emt 0:00:00]} 3. Bc4 {[%emt 0:00:00]} Bc5 {[%emt 0:00:04]} 4. d3 {[%emt 0:00:07]} Nf6 {[%emt 0:01:38]} 5. c3 {[%emt 0:00:06]} d6 {[%emt 0:00:19]} 6. Bb3 {[%emt 0:00:08]} a6 {[%emt 0:02:15]} 7. h3 {[%emt 0:02:51]} h6 {[%emt 0:00:24]} 8. Nbd2 {[%emt 0:00:16]} O-O {[%emt 0:00:29]} 9. O-O {[%emt 0:05:53]} Re8 {[%emt 0:02:44]} 10. Re1 {[%emt 0:03:37]} Be6 {[%emt 0:00:47]} 11. Bc2 {[%emt 0:02:12]} d5 12. Nxe5 {[%emt 0:18:37]} Nxe5 {[%emt 0:15:27]} 13. d4 {[%emt 0:00:04]} Nxe4 {[%emt 0:01:20]} 14. Nxe4 {[%emt 0:11:08]} dxe4 {[%emt 0:00:52]} 15. Bxe4 {[%emt 0:01:26]} Bd5 {[%emt 0:01:57]} 16. Bxd5 {[%emt 0:03:48]} Qxd5 {[%emt 0:00:20]} 17. dxc5 {[%emt 0:01:17]} Qxc5 {[%emt 0:00:15]} 18. Bf4 {[%emt 0:02:46]} Re6 {[%emt 0:17:44]} 19. Qc2 {[%emt 0:10:22]} Rae8 {[%emt 0:01:35]} 20. Re4 {[%emt 0:01:06]} Ng6 {[%emt 0:07:14]} 21. Rxe6 {[%emt 0:00:47]} Rxe6 {[%emt 0:00:02]} 22. Be3 {[%emt 0:04:15]} Qc6 {[%emt 0:01:08]} 23. Rd1 {[%emt 0:04:52]} Rd6 {[%emt 0:01:35]} 24. Rxd6 {[%emt 0:01:18]} Qxd6 {[%emt 0:00:02]} 25. Qe4 {[%emt 0:00:15]} c6 {[%emt 0:03:25]} 26. Qe8+ {[%emt 0:02:28]} Qf8 {[%emt 0:01:44]} 27. Qxf8+ {[%emt 0:01:52]} Nxf8 {[%emt 0:03:12]} 28. g4 {[%emt 0:01:06]} f6 {[%emt 0:01:07]} 29. Kg2 {[%emt 0:00:29]} Kf7 {[%emt 0:00:12]} 30. Kf3 {[%emt 0:00:05]} Nd7 {[%emt 0:00:05]} 31. Ke4 {[%emt 0:00:27]} Ke6 {[%emt 0:01:07]} 32. h4 {[%emt 0:02:07]} Ne5 {[%emt 0:12:42]} 33. f3 {[%emt 0:00:42]} Nc4 {[%emt 0:00:59]} 34. Bc1 {[%emt 0:00:14]} g5 {[%emt 0:07:32]} 35. hxg5 {[%emt 0:03:11]} hxg5 {[%emt 0:00:30]} 36. b3 {[%emt 0:01:00]} Ne5 {[%emt 0:00:15]} 37. Be3 {[%emt 0:00:55]} Nd7 {[%emt 0:00:08]} 38. c4 {[%emt 0:00:49]} Ne5 {[%emt 0:01:20]} 39. Bd4 {[%emt 0:04:25]} Nd7 {[%emt 0:00:09]} 40. Bf2 {[%emt 0:02:46]} Ne5 {[%emt 0:00:31]} 41. Bg3 {[%emt 0:00:48]} Nd7 {[%emt 0:00:03]} 42. Bc7 {[%emt 0:01:05]} Nc5+ {[%emt 0:00:22]} 43. Kd4 {[%emt 0:00:41]} Nd7 {[%emt 0:00:06]} 44. a4 {[%emt 0:02:07]} f5 {[%emt 0:06:24] Ke4 Ke5+} 1/2-1/2

[Event "39th IND-chT 2019"]
[Site "Kolkata"]
[Date "2019.02.09"]
[Round "6.3"]
[White "Aravindh, Chithambaram VR."]
[Black "Shyam, Sundar M."]
[Result "1-0"]
[ECO "C60"]
[WhiteElo "2601"]
[BlackElo "2512"]
[Annotator "ChessBase"]
[PlyCount "139"]
[EventDate "2019.??.??"]
[EventCountry "IND"]
[SourceTitle "playchess.com"]
[Source "ChessBase"]
[SourceQuality "1"]
[TimeControl "5400+30"]

1. e4 {[%emt 0:00:00]} e5 {[%emt 0:00:00]} 2. Nf3 {[%emt 0:00:00]} Nc6 {[%emt 0:00:00]} 3. Bb5 {[%emt 0:00:00]} g6 {[%emt 0:00:14]} 4. O-O {[%emt 0:02:16]} Bg7 {[%emt 0:00:07]} 5. c3 {[%emt 0:00:15]} a6 {[%emt 0:00:28]} 6. Ba4 {[%emt 0:00:05]} Nge7 {[%emt 0:00:14]} 7. d4 {[%emt 0:00:36]} exd4 {[%emt 0:00:39]} 8. cxd4 {[%emt 0:00:04]} b5 {[%emt 0:00:04]} 9. Bb3 {[%emt 0:02:50]} O-O {[%emt 0:00:13]} 10. Nc3 {[%emt 0:01:12]} d6 {[%emt 0:00:07]} 11. h3 {[%emt 0:00:47]} Na5 {[%emt 0:03:45]} 12. Bg5 {[%emt 0:02:00]} h6 {[%emt 0:10:48]} 13. Bh4 {[%emt 0:01:26]} Nxb3 {[%emt 0:15:15]} 14. Qxb3 {[%emt 0:01:16]} Be6 {[%emt 0:01:24]} 15. d5 {[%emt 0:04:13]} Bd7 {[%emt 0:00:07]} 16. Rfe1 {[%emt 0:01:32]} g5 {[%emt 0:03:04]} 17. Bg3 {[%emt 0:00:39]} f5 {[%emt 0:00:09]} 18. e5 {[%emt 0:01:37]} f4 {[%emt 0:00:04]} 19. Bh2 {[%emt 0:00:15]} Kh8 {[%emt 0:02:38]} 20. Rad1 {[%emt 0:10:59]} Bf5 {[%emt 0:06:35]} 21. exd6 {[%emt 0:14:21]} cxd6 {[%emt 0:09:49]} 22. Ne2 {[%emt 0:08:41]} Be4 {[%emt 0:06:13]} 23. h4 {[%emt 0:03:11]} Rc8 {[%emt 0:06:23]} 24. Nfd4 {[%emt 0:07:21]} Bxd5 {[%emt 0:04:09]} 25. Qh3 {[%emt 0:00:18]} Ng6 {[%emt 0:02:45]} 26. Nc3 {[%emt 0:02:58]} Rxc3 {[%emt 0:04:27]} 27. bxc3 {[%emt 0:00:39]} Nxh4 {[%emt 0:00:05]} 28. Ne6 {[%emt 0:00:34]} Bxe6 {[%emt 0:00:41]} 29. Rxe6 {[%emt 0:01:24]} d5 {[%emt 0:06:03]} 30. g3 {[%emt 0:09:21]} fxg3 {[%emt 0:08:26]} 31. Bxg3 {[%emt 0:00:16]} Nf3+ {[%emt 0:07:16]} 32. Kg2 {[%emt 0:02:06]} Kh7 {[%emt 0:00:17]} 33. Qh5 {[%emt 0:07:11]} d4 {[%emt 0:00:19]} 34. Qg6+ {[%emt 0:02:33]} Kh8 {[%emt 0:00:35]} 35. Qe4 {[%emt 0:01:39]} g4 {[%emt 0:01:47]} 36. Rh1 {[%emt 0:11:29]} Qg5 {[%emt 0:00:20]} 37. Rg6 {[%emt 0:00:37]} Qf5 {[%emt 0:01:51]} 38. Qxf5 {[%emt 0:00:16]} Rxf5 {[%emt 0:00:02]} 39. cxd4 {[%emt 0:00:06]} Nxd4 {[%emt 0:00:18]} 40. Re1 {[%emt 0:00:59]} Rg5 {[%emt 0:01:48]} 41. Rxa6 {[%emt 0:00:39]} h5 {[%emt 0:00:27]} 42. Rb6 {[%emt 0:01:35]} Nf3 {[%emt 0:00:30]} 43. Rb1 {[%emt 0:00:35]} h4 {[%emt 0:00:06]} 44. Bb8 {[%emt 0:00:35]} Nd4 {[%emt 0:00:37]} 45. Rh1 {[%emt 0:00:25]} h3+ {[%emt 0:00:38]} 46. Kg3 {[%emt 0:00:05]} Nf3 {[%emt 0:00:38]} 47. Bf4 {[%emt 0:00:22]} Be5 {[%emt 0:00:18]} 48. Rb7 {[%emt 0:00:36]} h2 {[%emt 0:00:27]} 49. Bxe5+ {[%emt 0:00:55]} Rxe5 {[%emt 0:00:01]} 50. Rd1 {[%emt 0:00:18]} Re8 {[%emt 0:00:27]} 51. Rxb5 {[%emt 0:00:08]} Kg7 {[%emt 0:00:45]} 52. Kxg4 {[%emt 0:00:23]} Nd4 {[%emt 0:01:05]} 53. Rh5 {[%emt 0:00:29]} Re4+ {[%emt 0:00:26]} 54. Kg3 {[%emt 0:00:08]} Kg6 {[%emt 0:00:07]} 55. Rxh2 {[%emt 0:00:13]} Nf5+ {[%emt 0:00:01]} 56. Kf3 {[%emt 0:00:12]} Ra4 {[%emt 0:00:01]} 57. Rd2 {[%emt 0:00:22]} Nh4+ {[%emt 0:00:15]} 58. Ke2 {[%emt 0:00:20]} Re4+ {[%emt 0:00:08]} 59. Kd3 {[%emt 0:00:11]} Ra4 {[%emt 0:00:04]} 60. Kc3 {[%emt 0:01:15]} Nf3 {[%emt 0:00:09]} 61. Rg2+ {[%emt 0:00:11]} Kf5 {[%emt 0:00:06]} 62. Rb2 {[%emt 0:00:07]} Ra3+ {[%emt 0:00:36]} 63. Kb4 {[%emt 0:00:11]} Ra8 {[%emt 0:00:01]} 64. a4 {[%emt 0:00:12]} Ne5 {[%emt 0:00:28]} 65. Rg3 {[%emt 0:00:32]} Rb8+ {[%emt 0:00:27]} 66. Kc3 {[%emt 0:00:03]} Rc8+ {[%emt 0:00:01]} 67. Kb3 {[%emt 0:00:06]} Ke4 {[%emt 0:00:28]} 68. Rc3 {[%emt 0:00:36]} Ra8 {[%emt 0:00:11]} 69. Re2+ {[%emt 0:00:15]} Kd4 {[%emt 0:00:06]} 70. Rd2+ {[%emt 0:00:04]} 1-0

[Event "39th IND-chT 2019"]
[Site "Kolkata"]
[Date "2019.02.09"]
[Round "6.4"]
[White "Stany, G.A."]
[Black "Karthikeyan, Murali"]
[Result "1/2-1/2"]
[ECO "C65"]
[WhiteElo "2517"]
[BlackElo "2560"]
[Annotator "ChessBase"]
[PlyCount "120"]
[EventDate "2019.??.??"]
[EventCountry "IND"]
[SourceTitle "playchess.com"]
[Source "ChessBase"]
[SourceQuality "1"]
[TimeControl "5400+30"]

1. e4 {[%emt 0:00:00]} e5 {[%emt 0:00:53]} 2. Nf3 {[%emt 0:00:04]} Nc6 {[%emt 0:00:06]} 3. Bb5 {[%emt 0:00:06]} Nf6 {[%emt 0:01:03]} 4. d3 {[%emt 0:00:46]} d6 {[%emt 0:01:24]} 5. c3 {[%emt 0:01:55]} g6 {[%emt 0:00:31]} 6. O-O {[%emt 0:03:08]} Bg7 {[%emt 0:00:04]} 7. Re1 {[%emt 0:00:05]} O-O {[%emt 0:01:27]} 8. Nbd2 {[%emt 0:00:03]} Bd7 {[%emt 0:11:09]} 9. Ba4 {[%emt 0:01:01]} Re8 {[%emt 0:02:54]} 10. Nf1 {[%emt 0:00:48]} h6 {[%emt 0:02:44]} 11. Ng3 {[%emt 0:00:26]} d5 {[%emt 0:09:19]} 12. h3 {[%emt 0:02:15]} Na5 {[%emt 0:17:18]} 13. d4 {[%emt 0:09:43]} exd4 {[%emt 0:16:23]} 14. e5 {[%emt 0:00:48]} dxc3 {[%emt 0:01:05]} 15. exf6 {[%emt 0:01:22]} Bxa4 {[%emt 0:02:18]} 16. Qxa4 {[%emt 0:01:11]} Rxe1+ {[%emt 0:00:23]} 17. Nxe1 {[%emt 0:00:12]} Qxf6 {[%emt 0:00:10]} 18. Rb1 {[%emt 0:10:11]} Nc4 {[%emt 0:06:58]} 19. bxc3 {[%emt 0:06:31]} Qxc3 {[%emt 0:00:14]} 20. Qd1 {[%emt 0:03:05]} b6 {[%emt 0:04:22]} 21. Qxd5 {[%emt 0:11:53]} Qxe1+ {[%emt 0:14:22]} 22. Nf1 {[%emt 0:00:22]} Re8 {[%emt 0:01:30]} 23. Qxc4 {[%emt 0:00:05]} Re4 {[%emt 0:00:51]} 24. Qb3 {[%emt 0:01:56]} Qa5 {[%emt 0:03:39]} 25. Be3 {[%emt 0:04:57]} Qa4 {[%emt 0:00:31]} 26. Rd1 {[%emt 0:14:32]} Qxb3 {[%emt 0:00:13]} 27. Rd8+ {[%emt 0:01:42]} Kh7 {[%emt 0:00:02]} 28. axb3 {[%emt 0:00:05]} Bf6 {[%emt 0:01:11]} 29. Ra8 {[%emt 0:03:39]} a5 {[%emt 0:00:34]} 30. Ra7 {[%emt 0:06:41]} Bd8 {[%emt 0:00:41]} 31. Ra8 {[%emt 0:04:37]} Bf6 {[%emt 0:00:09]} 32. Rc8 {[%emt 0:04:42]} Re7 {[%emt 0:00:37]} 33. Bf4 {[%emt 0:00:49]} c5 {[%emt 0:00:28]} 34. Rc6 {[%emt 0:02:33]} Re6 {[%emt 0:00:47]} 35. Rxe6 {[%emt 0:00:10]} fxe6 {[%emt 0:00:01]} 36. Bc7 {[%emt 0:01:11]} c4 {[%emt 0:00:05]} 37. Bxb6 {[%emt 0:00:47]} cxb3 {[%emt 0:00:10]} 38. Bxa5 {[%emt 0:00:04]} Bg5 {[%emt 0:00:07]} 39. Bc3 {[%emt 0:00:50]} Bc1 {[%emt 0:00:05]} 40. Ng3 {[%emt 0:02:14]} b2 {[%emt 0:00:06]} 41. Bxb2 {[%emt 0:00:03]} Bxb2 {[%emt 0:00:04]} 42. Kf1 {[%emt 0:00:15]} Kg7 {[%emt 0:02:32]} 43. Ne4 {[%emt 0:00:05]} Kf7 {[%emt 0:00:36]} 44. Ke2 {[%emt 0:00:04]} e5 {[%emt 0:01:15]} 45. Nc5 {[%emt 0:03:45]} Bd4 {[%emt 0:00:22]} 46. Ne4 {[%emt 0:00:28]} Ke6 {[%emt 0:00:12]} 47. Kd3 {[%emt 0:00:16]} Kd5 {[%emt 0:00:49]} 48. f3 {[%emt 0:00:45]} Bb2 {[%emt 0:00:34]} 49. Nf6+ {[%emt 0:00:39]} Ke6 {[%emt 0:00:02]} 50. Ng4 {[%emt 0:00:07]} h5 {[%emt 0:00:11]} 51. Ne3 {[%emt 0:00:55]} Bc1 {[%emt 0:01:05]} 52. Nf1 {[%emt 0:00:34]} h4 {[%emt 0:00:40]} 53. Nh2 {[%emt 0:00:19]} Kf5 {[%emt 0:00:10]} 54. Ng4 {[%emt 0:00:13]} Kf4 {[%emt 0:00:35]} 55. Ke2 {[%emt 0:00:10]} e4 {[%emt 0:00:07]} 56. fxe4 {[%emt 0:00:19]} Kxe4 {[%emt 0:00:01]} 57. Nf2+ {[%emt 0:00:30]} Kf4 {[%emt 0:01:35]} 58. Nd3+ {[%emt 0:00:17]} Kg3 {[%emt 0:00:01]} 59. Kf1 {[%emt 0:00:18]} Be3 {[%emt 0:00:15]} 60. Ne5 {[%emt 0:00:40]} g5 {[%emt 0:00:09]} 1/2-1/2

[Event "39th IND-chT 2019"]
[Site "Kolkata"]
[Date "2019.02.09"]
[Round "6.6"]
[White "Swapnil, S. Dhopade"]
[Black "Satyapragyan, Swayangsu"]
[Result "1/2-1/2"]
[ECO "A05"]
[WhiteElo "2488"]
[BlackElo "2381"]
[Annotator "ChessBase"]
[PlyCount "63"]
[EventDate "2019.??.??"]
[EventCountry "IND"]
[SourceTitle "playchess.com"]
[Source "ChessBase"]
[SourceQuality "1"]
[TimeControl "5400+30"]

1. Nf3 {[%emt 0:00:00]} Nf6 {[%emt 0:00:58]} 2. g3 {[%emt 0:00:00]} b5 {[%emt 0:00:30]} 3. Na3 {[%emt 0:00:00]} a6 {[%emt 0:00:24]} 4. c4 {[%emt 0:00:10]} e6 {[%emt 0:08:15]} 5. b3 {[%emt 0:08:10]} b4 {[%emt 0:03:54]} 6. Nc2 {[%emt 0:00:02]} Bb7 {[%emt 0:00:05]} 7. Bg2 {[%emt 0:05:41]} Be7 {[%emt 0:00:28]} 8. a3 {[%emt 0:00:20]} a5 {[%emt 0:04:54]} 9. axb4 {[%emt 0:05:12]} axb4 {[%emt 0:00:09]} 10. Rxa8 {[%emt 0:00:03]} Bxa8 {[%emt 0:00:02]} 11. d4 {[%emt 0:00:06]} O-O {[%emt 0:00:52]} 12. O-O {[%emt 0:01:55]} c5 {[%emt 0:04:51]} 13. Bb2 {[%emt 0:06:04]} Na6 {[%emt 0:01:58]} 14. e3 {[%emt 0:16:08]} Qb6 {[%emt 0:05:52]} 15. Qe2 {[%emt 0:08:11]} d6 {[%emt 0:07:56]} 16. Ra1 {[%emt 0:00:13]} Ne4 {[%emt 0:03:20]} 17. Nfe1 {[%emt 0:09:37]} Bb7 {[%emt 0:04:56]} 18. Nd3 {[%emt 0:04:39]} Nc3 {[%emt 0:09:17]} 19. Qe1 {[%emt 0:01:43]} Bxg2 {[%emt 0:06:07]} 20. Kxg2 {[%emt 0:00:09]} Rb8 {[%emt 0:01:35]} 21. Nc1 {[%emt 0:13:39]} Ne4 {[%emt 0:04:30]} 22. f3 {[%emt 0:00:04]} Nf6 {[%emt 0:00:14]} 23. e4 {[%emt 0:05:28]} cxd4 {[%emt 0:05:00]} 24. Bxd4 {[%emt 0:00:18]} Qb7 {[%emt 0:02:55]} 25. Ra5 {[%emt 0:04:37]} Nd7 {[%emt 0:10:17]} 26. Rb5 {[%emt 0:00:05]} Qc8 {[%emt 0:00:36]} 27. Rxb8 {[%emt 0:00:03]} Qxb8 {[%emt 0:03:11]} 28. Nd3 {[%emt 0:00:02]} e5 {[%emt 0:02:39]} 29. Be3 {[%emt 0:05:56]} Ndc5 {[%emt 0:00:26]} 30. Bxc5 {[%emt 0:03:58]} Nxc5 {[%emt 0:01:50]} 31. Nc1 {[%emt 0:00:10]} Bg5 {[%emt 0:01:01]} 32. Na2 1/2-1/2

[Event "39th IND-chT 2019"]
[Site "Kolkata"]
[Date "2019.02.09"]
[Round "6.10"]
[White "Subhayan Kundu"]
[Black "Neelotpal, Das"]
[Result "1/2-1/2"]
[ECO "A01"]
[WhiteElo "2354"]
[BlackElo "2409"]
[Annotator "NA"]
[PlyCount "84"]
[EventDate "2019.??.??"]
[EventCountry "IND"]
[SourceTitle "playchess.com"]
[Source "ChessBase"]
[SourceQuality "1"]
[TimeControl "5400+30"]

1. b3 {[%emt 0:00:00]} a5 {[%emt 0:00:15]} 2. c4 {[%emt 0:00:00]} e5 {[%emt 0:01:40]} 3. Bb2 {[%emt 0:01:30]} Nc6 {[%emt 0:00:06]} 4. e3 {[%emt 0:02:31]} Nf6 {[%emt 0:02:11]} 5. Nf3 {[%emt 0:02:29]} e4 {[%emt 0:12:53]} 6. Nd4 {[%emt 0:00:05]} Bc5 {[%emt 0:10:44]} 7. Nf5 {[%emt 0:12:55]} O-O {[%emt 0:01:24]} 8. Nc3 {[%emt 0:06:33]} Re8 {[%emt 0:18:21]} 9. d4 {[%emt 0:11:37]} ({White should try} 9. Nd5 $14 Ne5 10. Ng3) 9... exd3 {[%emt 0:02:05]} 10. Bxd3 $11 {[%emt 0:00:21]} Bf8 {[%emt 0:03:34]} (10... a4 $5) 11. O-O {[%emt 0:16:15]} g6 {[%emt 0:01:10]} 12. Ng3 {[%emt 0:01:13]} Bg7 {[%emt 0:00:30]} 13. Bc2 {[%emt 0:03:24]} d6 {[%emt 0:00:57]} 14. Qd2 {[%emt 0:00:37]} Nb4 {[%emt 0:02:41]} 15. Rad1 {[%emt 0:02:29]} Nxc2 {[%emt 0:12:50]} 16. Qxc2 {[%emt 0:00:02]} Qe7 {[%emt 0:00:14]} 17. Rfe1 {[%emt 0:00:46]} h5 {[%emt 0:02:10]} 18. f3 {[%emt 0:09:29]} Bd7 {[%emt 0:03:09]} 19. e4 {[%emt 0:01:04]} Bc6 {[%emt 0:02:04]} 20. Nf1 {[%emt 0:01:27]} a4 {[%emt 0:07:43]} 21. b4 {[%emt 0:02:17]} a3 {[%emt 0:00:55]} 22. Ba1 {[%emt 0:00:07]} h4 {[%emt 0:01:22]} 23. Ne3 {[%emt 0:00:40]} b6 {[%emt 0:00:56]} 24. Qf2 {[%emt 0:02:53]} h3 {[%emt 0:01:00]} 25. g3 {[%emt 0:00:53]} Rac8 {[%emt 0:05:02]} 26. Qf1 {[%emt 0:01:29]} Qe6 {[%emt 0:01:52]} 27. Ne2 {[%emt 0:02:25]} Ba4 {[%emt 0:02:23]} 28. Nf4 {[%emt 0:00:37]} Qd7 {[%emt 0:00:19]} 29. Rd2 {[%emt 0:01:17]} b5 {[%emt 0:00:44]} 30. c5 {[%emt 0:02:02]} Qc6 {[%emt 0:00:08]} 31. Rc1 {[%emt 0:01:57]} Rcd8 {[%emt 0:01:10]} 32. Qxh3 {[%emt 0:05:02]} dxc5 {[%emt 0:01:01]} 33. Rxd8 {[%emt 0:00:19]} Rxd8 {[%emt 0:00:08]} 34. Rxc5 {[%emt 0:00:06]} Qb6 {[%emt 0:00:32]} 35. Ned5 {[%emt 0:01:58]} Nxd5 {[%emt 0:01:45]} 36. Bxg7 {[%emt 0:00:11]} Kxg7 {[%emt 0:00:22]} 37. Nxd5 {[%emt 0:00:02]} Qd6 {[%emt 0:00:40]} 38. Qf1 {[%emt 0:04:32]} c6 {[%emt 0:00:34]} 39. Qa1+ {[%emt 0:00:31]} f6 {[%emt 0:00:07]} 40. Nc3 {[%emt 0:04:00]} Qd4+ {[%emt 0:00:29]} 41. Kg2 {[%emt 0:00:04]} Qxb4 {[%emt 0:01:30]} 42. Nxa4 {[%emt 0:00:55]} Qd2+ {Nc3} 1/2-1/2